fUST/lending_fUST_20250524
["ID","MTS","AMOUNT","RATE_DAILY","PERIOD"]
[362165117,1748046634037,-449.07192316,0.00018252,2]
[362165118,1748046634046,-308.91896273,0.00018252,2]
[362165119,1748046634056,-350.0,0.00018252,2]
[362165120,1748046634065,-430.0,0.00018252,2]
[362165121,1748046634075,-450.0,0.00018252,2]
[362165122,1748046634084,-490.0,0.00018252,2]
[362165123,1748046634094,-450.0,0.00018252,2]
[362165124,1748046634103,-430.0,0.00018252,2]
[362165125,1748046634113,-437.2179906,0.00018252,2]
[362165126,1748046634122,-430.0,0.00018252,2]
[362165127,1748046634132,-450.0,0.00018252,2]
[362165128,1748046634141,-450.0,0.00018252,2]
[362165129,1748046634151,-430.0,0.00018252,2]
[362165130,1748046634161,-430.0,0.00018252,2]
[362165131,1748046634171,-430.0,0.00018252,2]
[362165132,1748046634181,-450.0,0.00018252,2]
[362165133,1748046634191,-370.0,0.00018252,2]
[362165134,1748046634200,-401.17290025,0.00018252,2]
[362165135,1748046634211,-470.0,0.00018268,2]
[362165136,1748046634220,-436.94678031,0.00018268,2]
[362165137,1748046634230,-430.0,0.00018268,2]
[362165138,1748046634240,-430.0,0.00018268,2]
[362165139,1748046634250,-328.44,0.00018268,2]
[362165140,1748046634259,-457.73,0.00018268,2]
[362165141,1748046634269,-430.0,0.00018268,2]
[362165142,1748046634279,-430.0,0.00018268,2]
[362165143,1748046634289,-430.0,0.00018268,2]
[362165144,1748046634298,-430.0,0.00018269,2]
[362165145,1748046634307,-430.0,0.00018269,2]
[362165146,1748046634316,-430.0,0.00018269,2]
[362165147,1748046634326,-430.0,0.00018269,2]
[362165148,1748046634335,-430.0,0.00018269,2]
[362165149,1748046634345,-430.0,0.00018269,2]
[362165150,1748046634355,-546.56,0.00018269,2]
[362165151,1748046634364,-430.0,0.00018269,2]
[362165152,1748046634373,-430.0,0.00018269,2]
[362165153,1748046634383,-430.0,0.00018269,2]
[362165154,1748046634393,-430.0,0.0001827,2]
[362165155,1748046634403,-467.04,0.0001827,2]
[362165156,1748046634413,-430.0,0.0001827,2]
[362165157,1748046634423,-430.0,0.0001827,2]
[362165158,1748046634434,-450.0,0.00018526,2]
[362165159,1748046634444,-430.0,0.00018526,2]
[362165160,1748046634454,-430.0,0.00018526,2]
[362165161,1748046634464,-490.0,0.00018526,2]
[362165162,1748046634474,-450.0,0.00018526,2]
[362165163,1748046634484,-430.0,0.00018526,2]
[362165164,1748046634494,-430.0,0.00018526,2]
[362165165,1748046634506,-450.0,0.00018526,2]
[362165166,1748046634516,-430.0,0.00018542,2]
[362165167,1748046634526,-430.0,0.00018542,2]
[362165168,1748046634536,-430.0,0.00018542,2]
[362165169,1748046634547,-430.0,0.00018542,2]
[362165170,1748046634556,-170.63285585,0.00018542,2]
[362165171,1748046634566,-430.0,0.00018543,2]
[362165172,1748046634575,-430.0,0.00018543,2]
[362165173,1748046634587,-430.0,0.00018543,2]
[362165174,1748046634598,-430.0,0.00018543,2]
[362165175,1748046634607,-430.0,0.00018543,2]
[362165176,1748046634618,-546.56,0.00018543,2]
[362165177,1748046634628,-430.0,0.00018543,2]
[362165178,1748046634638,-430.0,0.00018543,2]
[362165179,1748046634647,-430.0,0.00018543,2]
[362165180,1748046634658,-430.0,0.00018544,2]
[362165181,1748046634667,-430.0,0.00018544,2]
[362165182,1748046634677,-422.85710789,0.00018607,2]
[362165183,1748046634687,-160.0,0.00018607,2]
[362165184,1748046634697,-894.64583333,0.00018608,2]
[362165185,1748046634707,-430.0,0.000188,2]
[362165186,1748046634716,-450.0,0.000188,2]
[362165187,1748046634726,-430.0,0.00018816,2]
[362165188,1748046634736,-430.0,0.00018816,2]
[362165189,1748046634745,-430.0,0.00018816,2]
[362165190,1748046634755,-430.0,0.00018817,2]
[362165191,1748046634765,-430.0,0.00018817,2]
[362165192,1748046634774,-430.0,0.00018817,2]
[362165193,1748046634784,-546.56,0.00018817,2]
[362165194,1748046634793,-430.0,0.00018817,2]
[362165195,1748046634803,-430.0,0.00018817,2]
[362165196,1748046634813,-430.0,0.00018817,2]
[362165197,1748046634822,-430.0,0.00018818,2]
[362165198,1748046634832,-430.0,0.00018818,2]
[362165199,1748046634841,-315.59953558,0.000189,2]
[362165200,1748046634851,-430.0,0.0001909,2]
[362165201,1748046634860,-521.66582916,0.0001909,2]
[362165202,1748046634869,-259.61,0.0001909,2]
[362165203,1748046634879,-430.0,0.00019091,2]
[362165204,1748046634889,-430.0,0.00019091,2]
[362165205,1748046634898,-430.0,0.00019091,2]
[362165206,1748046634908,-546.56,0.00019091,2]
[362165207,1748046634918,-189.55921122,0.00019091,2]
[362165208,1748046634928,-430.0,0.00019091,2]
[362165209,1748046634937,-430.0,0.00019092,2]
[362165210,1748046634947,-315.59953544,0.00019107,2]
[362165211,1748046634956,-315.59953544,0.00019314,2]
[362165212,1748046634965,-430.0,0.00019364,2]
[362165213,1748046634976,-430.0,0.00019365,2]
[362165214,1748046634986,-408.7,0.00019365,2]
[362165215,1748046634995,-430.0,0.00019365,2]
[362165216,1748046635004,-546.56,0.00019365,2]
[362165217,1748046635014,-430.0,0.00019365,2]
[362165218,1748046635023,-430.0,0.00019366,2]
[362165219,1748046635033,-315.59953544,0.00019521,2]
[362165220,1748046635042,-430.0,0.00019638,2]
[362165221,1748046635052,-430.0,0.00019639,2]
[362165222,1748046635061,-544.95,0.00019639,2]
[362165223,1748046635071,-546.56,0.00019639,2]
[362165224,1748046635081,-237.77,0.00019639,2]
[362165225,1748046635090,-224.37,0.0001964,2]
[362165226,1748046635100,-315.59953544,0.00019728,2]
[362165227,1748046635110,-430.0,0.00019912,2]
[362165228,1748046635119,-430.0,0.00019913,2]
[362165229,1748046635129,-546.56,0.00019913,2]
[362165230,1748046635139,-315.59953544,0.00019934,2]
[362165231,1748046635149,-315.59953544,0.00020141,2]
[362165232,1748046635158,-430.0,0.00020186,2]
[362165233,1748046635168,-430.0,0.00020187,2]
[362165234,1748046635179,-546.56,0.00020187,2]
[362165235,1748046635188,-315.59953544,0.00020348,3]
[362165236,1748046635197,-430.0,0.0002046,2]
[362165237,1748046635206,-430.0,0.00020461,2]
[362165238,1748046635216,-546.56,0.00020461,2]
[362165239,1748046635225,-315.59953544,0.00020555,3]
[362165240,1748046635235,-430.0,0.00020734,2]
[362165241,1748046635244,-326.47,0.00020735,2]
[362165242,1748046635254,-546.56,0.00020735,2]
[362165243,1748046635263,-315.59953544,0.00020762,3]
[362165244,1748046635273,-315.59953544,0.00020969,4]
[362165245,1748046635282,-430.0,0.00021008,2]
[362165246,1748046635292,-546.56,0.00021009,2]
[362165247,1748046635301,-185.248,0.00021134,2]
[362165248,1748046635310,-315.59953544,0.00021176,4]
[362165249,1748046635320,-207.4,0.0002119,2]
[362165250,1748046635329,-391.43840874,0.00021282,2]
[362165251,1748046635339,-546.56,0.00021283,2]
[362165252,1748046635350,-315.59953544,0.00021383,5]
[362165253,1748046635360,-404.0,0.00021552,2]
[362165254,1748046635371,-546.56,0.00021557,2]
[362165255,1748046635380,-315.59953544,0.0002159,5]
[362165256,1748046635390,-315.59953544,0.00021797,6]
[362165257,1748046635400,-546.56,0.00021831,2]
[362165258,1748046635410,-217.01001106,0.00021917,2]
[362165259,1748046635420,-315.59953544,0.00022003,6]
[362165260,1748046635431,-546.56,0.00022105,2]
[362165261,1748046635441,-315.59953544,0.0002221,6]
[362165262,1748046635451,-500.0,0.00022378,2]
[362165263,1748046635462,-500.0,0.00022378,2]
[362165264,1748046635471,-500.0,0.00022378,2]
[362165265,1748046635481,-500.0,0.00022378,2]
[362165266,1748046635491,-316.90233151,0.00022378,2]
[362165267,1748046635504,-500.0,0.00022378,2]
[362165268,1748046635515,-500.0,0.00022378,2]
[362165269,1748046635525,-500.0,0.00022378,2]
[362165270,1748046635535,-500.0,0.00022378,2]
[362165271,1748046635546,-369.8163724,0.00022378,2]
[362165272,1748046635556,-546.56,0.00022379,2]
[362165273,1748046635566,-315.59953544,0.00022417,7]
[362165274,1748046635576,-215.0738,0.00022559,2]
[362165275,1748046635587,-315.59953544,0.00022624,7]
[362165276,1748046635598,-546.56,0.00022653,2]
[362165277,1748046635608,-500.0,0.00022676,2]
[362165278,1748046635617,-315.59953544,0.00022831,8]
[362165279,1748046635627,-546.56,0.00022927,2]
[362165280,1748046635637,-171.0,0.00023,7]
[362165281,1748046635647,-315.59953544,0.00023038,8]
[362165282,1748046635657,-1000.0,0.00023064,2]
[362165283,1748046635667,-363.7241891,0.00023096,2]
[362165284,1748046635680,-546.56,0.00023201,2]
[362165285,1748046635690,-500.0,0.00023202,2]
[362165286,1748046635700,-315.59953544,0.00023245,8]
[362165287,1748046635711,-6018.77,0.00023287,2]
[362165288,1748046635722,-306.0,0.0002337,2]
[362165289,1748046635731,-158.0682864,0.0002337,2]
[362165290,1748046635741,-315.59953544,0.00023452,9]
[362165291,1748046635751,-546.56,0.00023475,2]
[362165292,1748046635761,-812.912653,0.00023545,2]
[362165293,1748046635771,-315.59953544,0.00023659,9]
[362165294,1748046635912,-546.56,0.00023749,2]
[362165295,1748046635922,-500.0,0.00023772,2]
[362165296,1748046635935,-490.178395,0.000238,30]
[362165297,1748046635946,-315.59953544,0.00023866,10]
[362165298,1748046635956,-223.0315306,0.00023928,2]
[362165299,1748046635965,-546.56,0.00024023,2]
[362165300,1748046635976,-363.7241891,0.00024055,2]
[362165301,1748046635986,-363.7241891,0.00024055,2]
[362165302,1748046635996,-363.7241891,0.00024055,2]
[362165303,1748046636006,-362.9880856,0.00024055,2]
[362165304,1748046636016,-315.59953544,0.00024072,10]
[362165305,1748046636027,-26.36153429,0.00024098,3]
[362165306,1748046636038,-500.0,0.00024118,2]
[362165307,1748046636048,-775.88,0.00024153,7]
[362165308,1748046636059,-775.88,0.00024253,3]
[362165309,1748046636068,-315.59953544,0.00024279,10]
[362165310,1748046636079,-546.72,0.00024296,2]
[362165311,1748046636089,-775.88,0.00024353,5]
[362165312,1748046636099,-157.61818794,0.00024384,2]
[362165313,1748046636108,-500.0,0.00024407,2]
[362165314,1748046636118,-775.88,0.00024453,2]
[362165315,1748046636128,-315.59953544,0.00024486,11]
[362165316,1748046636137,-404.0,0.00024552,2]
[362165317,1748046636147,-775.88,0.00024553,6]
[362165318,1748046636157,-200.0,0.0002458,11]
[362165319,1748046636167,-20029.4293041,0.000246,2]
[362165320,1748046636179,-775.88,0.00024653,5]
[362165321,1748046636190,-430.0,0.00024657,2]
[362165322,1748046636199,-207.8655665,0.00024657,2]
[362165323,1748046636209,-380.0,0.00024658,2]
[362165324,1748046636220,-197.67257448,0.00024658,2]
[362165325,1748046636230,-12647.66147447,0.0002469,10]
[362165326,1748046636240,-160.0,0.0002469,10]
[362165327,1748046636250,-315.59953544,0.00024693,11]
[362165328,1748046636259,-20442.21,0.000247,2]
[362165329,1748046636270,-157.61818794,0.00024712,2]
[362165330,1748046636279,-775.88,0.00024753,5]
[362165331,1748046636290,-3557.80654356,0.00024842,2]
[362165332,1748046636300,-775.88,0.00024853,2]
[362165333,1748046636310,-500.0,0.00024868,7]
[362165334,1748046636320,-3557.80654355,0.00024871,2]
[362165335,1748046636330,-422.85710789,0.000249,10]
[362165336,1748046636340,-98221.18970645,0.000249,2]
[362165359,1748046638147,-500.0,0.00017994,2]
[362165361,1748046638157,-500.0,0.00017994,2]
[362165363,1748046638167,-154.20336941,0.00017994,2]
[362165365,1748046638177,-464.26034575,0.00017994,2]
[362165366,1748046638187,-500.0,0.00022378,2]
[362165367,1748046638196,-500.0,0.00022378,2]
[362165368,1748046638206,-373.74505304,0.00022378,2]
[362165369,1748046638218,-126.25494696,0.00022378,2]
[362165370,1748046638227,-166.04490896,0.00022378,2]
[362165371,1748046638237,-500.0,0.00022378,2]
[362165372,1748046638246,-500.0,0.00022378,2]
[362165373,1748046638255,-500.0,0.00022378,2]
[362165374,1748046638264,-6570.59,0.0002469,10]
[362165375,1748046638274,-698.85305408,0.000249,2]
[362165389,1748046640343,-673.6,0.000249,2]
[362165397,1748046643335,-46640.22513784,0.000249,2]
[362165404,1748046643389,-8191.06418571,0.000249,2]
[362165406,1748046643401,-2146.8,0.000249,2]
[362165577,1748046646398,-500.0,0.00022378,2]
[362165578,1748046646409,-36.45,0.00022378,2]
[362165588,1748047517042,122546.59836777,0.00027,120]
[362165589,1748047524295,1755.45160426,0.0002739,120]
[362165607,1748047671463,212.160984,0.00021463,120]
[362165630,1748047832358,-160.897277,0.00013699,2]
[362165631,1748047832369,-106.99252792,0.0001746,2]
[362165632,1748047832383,-221.99544329,0.0001746,2]
[362165633,1748047832395,-300.0,0.00017993,2]
[362165634,1748047832406,-300.0,0.00017993,2]
[362165635,1748047832417,-498.86380898,0.00017993,2]
[362165636,1748047832434,-701.13619102,0.00017993,2]
[362165637,1748047832446,-396.48359535,0.00017994,2]
[362165638,1748047832456,-430.0,0.00017994,2]
[362165639,1748047832467,-450.0,0.00017994,2]
[362165640,1748047832478,-316.99246739,0.00017994,2]
[362165641,1748047832680,-113.00753261,0.00017994,2]
[362165642,1748047832692,-430.0,0.00017994,2]
[362165643,1748047832703,-430.0,0.00017994,2]
[362165644,1748047832715,-430.0,0.00017994,2]
[362165645,1748047832727,-430.0,0.00017994,2]
[362165646,1748047832739,-430.0,0.00017994,2]
[362165647,1748047832750,-212.160984,0.00021463,2]
[362165648,1748047832763,-315.59953544,0.000219,6]
[362165649,1748047832775,-200.0,0.00022184,2]
[362165650,1748047832787,-422.85710789,0.00022316,2]
[362165651,1748047832798,-160.0,0.00022488,2]
[362165652,1748047832976,-404.0,0.00022542,2]
[362165653,1748047832986,-500.0,0.00022676,2]
[362165654,1748047832996,-500.0,0.00023,2]
[362165655,1748047833006,-207.4,0.00023292,2]
[362165656,1748047833015,-2640.57,0.00023296,10]
[362165657,1748047833025,-500.0,0.00023305,2]
[362165658,1748047833035,-500.0,0.00023305,2]
[362165659,1748047833046,-450.25885806,0.00023305,2]
[362165660,1748047833058,-430.0,0.00023305,2]
[362165661,1748047833068,-430.0,0.00023305,2]
[362165662,1748047833077,-430.0,0.00023305,2]
[362165663,1748047833087,-430.0,0.00023305,2]
[362165664,1748047833096,-430.0,0.00023305,2]
[362165665,1748047833106,-430.0,0.00023305,2]
[362165666,1748047833115,-3855.68,0.00023305,2]
[362165667,1748047833126,-430.0,0.00023305,2]
[362165668,1748047833135,-430.0,0.00023305,2]
[362165669,1748047833145,-430.0,0.00023305,2]
[362165670,1748047833155,-430.0,0.00023305,2]
[362165671,1748047833164,-430.0,0.00023305,2]
[362165672,1748047833174,-8339.93943276,0.00023305,2]
[362165679,1748047838326,-2856.04198345,0.00023296,10]
[362165681,1748047838340,-2179.34801655,0.00023296,10]
[362165682,1748047838349,-500.0,0.00023304,2]
[362165683,1748047838358,-500.0,0.00023304,2]
[362165684,1748047838368,-500.0,0.00023304,2]
[362165685,1748047838377,-500.0,0.00023304,2]
[362165686,1748047838387,-500.0,0.00023304,2]
[362165687,1748047838399,-328.90347875,0.00023304,2]
[362165688,1748047838429,-171.09652125,0.00023304,2]
[362165689,1748047838438,-358.92979051,0.00023304,2]
[362165690,1748047838448,-467.67839646,0.00023304,2]
[362165691,1748047838457,-500.0,0.00023304,2]
[362165692,1748047838468,-500.0,0.00023304,2]
[362165693,1748047838478,-599.2788703,0.00023304,2]
[362165694,1748047838488,-500.0,0.00023304,2]
[362165695,1748047838500,-500.0,0.00023304,2]
[362165696,1748047838510,-500.0,0.00023304,2]
[362165697,1748047838520,-300.0,0.00023304,2]
[362165698,1748047838530,-294.04185938,0.00023304,2]
[362165699,1748047838540,-1193.12035913,0.00023305,2]
[362165753,1748047840581,-528.7582971,0.00023305,2]
[362165755,1748047840593,-1294.57191101,0.00023305,2]
[362165757,1748047840603,-2796.37788094,0.00023305,2]
[362165762,1748047840640,-324.97025148,0.00023305,2]
[362165764,1748047840652,-2145.95134623,0.00023305,2]
[362165765,1748047840679,-2707.59966657,0.00023305,2]
[362165766,1748047840700,-1185.32798568,0.00023305,2]
[362165767,1748047840711,-1520.7328691,0.00023305,2]
[362165768,1748047840721,-470.0,0.00023305,2]
[362165769,1748047840731,-430.0,0.00023305,2]
[362165770,1748047840740,-430.0,0.00023305,2]
[362165771,1748047840750,-430.0,0.00023305,2]
[362165772,1748047840759,-430.0,0.00023305,2]
[362165773,1748047840768,-430.0,0.00023305,2]
[362165774,1748047840778,-430.0,0.00023305,2]
[362165775,1748047840788,-430.0,0.00023305,2]
[362165776,1748047840797,-430.0,0.00023305,2]
[362165777,1748047840807,-430.0,0.00023305,2]
[362165778,1748047840817,-430.0,0.00023305,2]
[362165779,1748047840826,-430.0,0.00023305,2]
[362165780,1748047840836,-430.0,0.00023305,2]
[362165781,1748047840845,-430.0,0.00023305,2]
[362165782,1748047840855,-430.0,0.00023305,2]
[362165783,1748047840864,-430.0,0.00023305,2]
[362165784,1748047840876,-430.0,0.00023305,2]
[362165785,1748047840890,-430.0,0.00023305,2]
[362165786,1748047840900,-430.0,0.00023305,2]
[362165787,1748047840909,-430.0,0.00023305,2]
[362165788,1748047840919,-400.0,0.00023305,2]
[362165789,1748047840930,-216.27310588,0.00023305,2]
[362165827,1748047843467,-213.72689412,0.00023305,2]
[362165829,1748047843477,-89.75991988,0.00023305,2]
[362165831,1748047843488,-340.24008012,0.00023305,2]
[362165833,1748047843498,-430.0,0.00023305,2]
[362165834,1748047843507,-378.6609437,0.00023305,2]
[362165836,1748047843519,-51.3390563,0.00023305,2]
[362165837,1748047843529,-430.0,0.00023305,2]
[362165839,1748047843538,-430.0,0.00023305,2]
[362165841,1748047843548,-430.0,0.00023305,2]
[362165843,1748047843557,-400.0,0.00023306,2]
[362165845,1748047843566,-400.0,0.00023306,2]
[362165846,1748047843576,-400.0,0.00023306,2]
[362165848,1748047843586,-430.0,0.00023306,2]
[362165850,1748047843595,-430.0,0.00023306,2]
[362165852,1748047843605,-400.0,0.00023306,2]
[362165854,1748047843614,-430.0,0.00023306,2]
[362165856,1748047843624,-490.0,0.00023306,2]
[362165858,1748047843633,-59.15492018,0.00023306,2]
[362165944,1748047846701,-199.33798437,0.00023304,2]
[362165945,1748047846712,-370.84507982,0.00023306,2]
[362165946,1748047846721,-400.0,0.00023306,2]
[362165947,1748047846731,-430.0,0.00023306,2]
[362165948,1748047846740,-430.0,0.00023306,2]
[362165949,1748047846749,-430.0,0.00023306,2]
[362165950,1748047846758,-450.0,0.00023306,2]
[362165951,1748047846768,-449.67736833,0.00023306,2]
[362165952,1748047846777,-1012.80790411,0.00023306,2]
[362165953,1748047846787,-430.0,0.00023306,2]
[362165954,1748047846797,-430.0,0.00023306,2]
[362165955,1748047846807,-278.29807434,0.00023306,2]
[362165956,1748047846817,-430.0,0.00023306,2]
[362165957,1748047846828,-430.0,0.00023306,2]
[362165958,1748047846840,-430.0,0.00023306,2]
[362165959,1748047846850,-430.0,0.00023306,2]
[362165960,1748047846859,-430.0,0.00023306,2]
[362165961,1748047846869,-430.0,0.00023306,2]
[362165962,1748047846878,-430.0,0.00023306,2]
[362165963,1748047846892,-430.0,0.00023306,2]
[362165964,1748047846902,-450.0,0.00023306,2]
[362165965,1748047846912,-430.0,0.00023306,2]
[362165966,1748047846922,-430.0,0.00023306,2]
[362165967,1748047846933,-430.0,0.00023306,2]
[362165968,1748047846944,-430.0,0.00023306,2]
[362165969,1748047846954,-430.0,0.00023306,2]
[362165970,1748047846965,-430.0,0.00023306,2]
[362165971,1748047846975,-430.0,0.00023306,2]
[362165972,1748047846985,-430.0,0.00023306,2]
[362165973,1748047846994,-430.0,0.00023306,2]
[362165974,1748047847003,-430.0,0.00023306,2]
[362165975,1748047847013,-460.0,0.00023306,2]
[362165976,1748047847022,-430.0,0.00023306,2]
[362165977,1748047847032,-430.0,0.00023306,2]
[362165978,1748047847041,-430.0,0.00023306,2]
[362165979,1748047847050,-430.0,0.00023306,2]
[362165980,1748047847060,-430.0,0.00023306,2]
[362165981,1748047847069,-430.0,0.00023306,2]
[362165982,1748047847078,-371.42132255,0.00023306,2]
[362165983,1748047847087,-430.0,0.00023306,2]
[362165984,1748047847097,-296.83078456,0.00023306,2]
[362165985,1748047847106,-430.0,0.00023306,2]
[362165986,1748047847115,-430.0,0.00023306,2]
[362165987,1748047847125,-430.0,0.00023306,2]
[362165988,1748047847134,-430.0,0.00023306,2]
[362165989,1748047847143,-235.13968386,0.00023306,2]
[362165990,1748047847153,-430.0,0.00023306,2]
[362165991,1748047847162,-430.0,0.00023306,2]
[362165992,1748047847172,-430.0,0.00023306,2]
[362165993,1748047847182,-430.0,0.00023306,2]
[362165994,1748047847191,-430.0,0.00023306,2]
[362165995,1748047847202,-430.0,0.00023306,2]
[362165996,1748047847211,-430.0,0.00023306,2]
[362165997,1748047847221,-430.0,0.00023306,2]
[362165998,1748047847230,-430.0,0.00023306,2]
[362165999,1748047847240,-430.0,0.00023306,2]
[362166000,1748047847249,-430.0,0.00023306,2]
[362166001,1748047847259,-430.0,0.00023306,2]
[362166002,1748047847269,-430.0,0.00023306,2]
[362166003,1748047847278,-430.0,0.00023306,2]
[362166004,1748047847288,-430.0,0.00023306,2]
[362166005,1748047847297,-430.0,0.00023306,2]
[362166006,1748047847307,-430.0,0.00023306,2]
[362166007,1748047847316,-430.0,0.00023306,2]
[362166008,1748047847325,-430.0,0.00023306,2]
[362166009,1748047847335,-430.0,0.00023306,2]
[362166010,1748047847345,-430.0,0.00023306,2]
[362166011,1748047847354,-400.0,0.00023306,2]
[362166012,1748047847363,-430.0,0.00023306,2]
[362166013,1748047847373,-450.0,0.00023306,2]
[362166014,1748047847383,-430.0,0.00023306,2]
[362166015,1748047847392,-430.0,0.00023306,2]
[362166016,1748047847402,-430.0,0.00023306,2]
[362166017,1748047847413,-430.0,0.00023306,2]
[362166018,1748047847424,-430.0,0.00023306,2]
[362166019,1748047847434,-430.0,0.00023306,2]
[362166020,1748047847444,-451.29922594,0.00023306,2]
[362166021,1748047847456,-430.0,0.00023306,2]
[362166022,1748047847466,-6969.84,0.00023306,2]
[362166023,1748047847477,-430.0,0.00023306,2]
[362166024,1748047847486,-430.0,0.00023306,2]
[362166025,1748047847498,-430.0,0.00023306,2]
[362166026,1748047847509,-450.0,0.00023306,2]
[362166027,1748047847520,-430.0,0.00023306,2]
[362166028,1748047847531,-400.0,0.00023306,2]
[362166029,1748047847541,-430.0,0.00023306,2]
[362166030,1748047847550,-430.0,0.00023306,2]
[362166031,1748047847560,-430.0,0.00023306,2]
[362166032,1748047847571,-430.0,0.00023306,2]
[362166033,1748047847580,-430.0,0.00023306,2]
[362166034,1748047847590,-430.0,0.00023306,2]
[362166035,1748047847602,-450.0,0.00023306,2]
[362166036,1748047847611,-430.0,0.00023306,2]
[362166037,1748047847621,-430.0,0.00023306,2]
[362166038,1748047847632,-430.0,0.00023306,2]
[362166039,1748047847643,-400.0,0.00023306,2]
[362166040,1748047847653,-400.0,0.00023306,2]
[362166041,1748047847664,-300.0,0.00023306,2]
[362166042,1748047847673,-400.0,0.00023306,2]
[362166043,1748047847683,-430.0,0.00023306,2]
[362166044,1748047847694,-450.0,0.00023306,2]
[362166045,1748047847704,-400.0,0.00023306,2]
[362166046,1748047847712,-430.0,0.00023306,2]
[362166047,1748047847722,-430.0,0.00023306,2]
[362166048,1748047847731,-430.0,0.00023306,2]
[362166049,1748047847740,-430.0,0.00023306,2]
[362166050,1748047847750,-400.0,0.00023306,2]
[362166051,1748047847759,-450.0,0.00023306,2]
[362166052,1748047847768,-450.0,0.00023306,2]
[362166053,1748047847777,-400.0,0.00023306,2]
[362166054,1748047847787,-450.0,0.00023306,2]
[362166055,1748047847797,-450.0,0.00023306,2]
[362166056,1748047847806,-400.0,0.00023306,2]
[362166057,1748047847815,-430.0,0.00023306,2]
[362166058,1748047847824,-24156.7242739,0.00023307,2]
[362166059,1748047847834,-152.0,0.00023402,2]
[362166060,1748047847844,-4196.16,0.00023569,10]
[362166061,1748047847854,-500.0,0.00023578,2]
[362166062,1748047847863,-500.0,0.00023578,2]
[362166063,1748047847874,-500.0,0.00023578,2]
[362166064,1748047847888,-500.0,0.00023578,2]
[362166065,1748047847899,-333.71558283,0.00023578,2]
[362166066,1748047847909,-500.0,0.00023578,2]
[362166067,1748047847919,-500.0,0.00023578,2]
[362166068,1748047847930,-500.0,0.00023578,2]
[362166069,1748047847940,-500.0,0.00023578,2]
[362166070,1748047847951,-556.70142703,0.00023578,2]
[362166071,1748047847962,-455.29643627,0.00023578,2]
[362166072,1748047847972,-500.0,0.00023578,2]
[362166073,1748047847981,-500.0,0.00023578,2]
[362166074,1748047847991,-500.0,0.00023578,2]
[362166075,1748047848001,-500.0,0.00023578,2]
[362166076,1748047848011,-500.0,0.00023578,2]
[362166077,1748047848020,-500.0,0.00023578,2]
[362166078,1748047848029,-250.0,0.00023578,2]
[362166079,1748047848039,-235.17,0.00023579,2]
[362166080,1748047848048,-3855.68,0.00023579,2]
[362166081,1748047848058,-5767.99,0.00023579,2]
[362166082,1748047848068,-11356.39,0.00023579,2]
[362166083,1748047848077,-10680.96,0.00023579,2]
[362166084,1748047848088,-325.63189709,0.00023579,2]
[362166085,1748047848097,-430.0,0.00023579,2]
[362166086,1748047848107,-430.0,0.00023579,2]
[362166087,1748047848117,-430.0,0.00023579,2]
[362166088,1748047848126,-430.0,0.00023579,2]
[362166089,1748047848135,-430.0,0.00023579,2]